Cogmind - Beta 11.1 @@@ ROGUE MODE // 2022.05.08 @ 09:39:57 Player: Zeldest Result: Destroyed by G-47 Trooper with Particle Gun Performance ------------- Evolutions (2) 1000 Regions Visited (4) 800 Robots Destroyed (17) 85 Value Destroyed (658) 658 Prototype IDs (3) 60 Alien Tech Used (0) 0 Bonus (0) 0 TOTAL SCORE: 2603 Bonus ------- None Cogmind --------- Core Integrity 0/550 Matter 280/300 Energy 100/100 System Corruption 2% Temperature Cool (9) Movement Core (100) Ox1 Location -8/Materials Parts ------- > --- POWER (2) -------- (None) > --- PROPULSION (2) --- (None) > --- UTILITY (5) ------ Advanced Visual Processing Unit Signal Interpreter > --- WEAPON (2) ------- Pulse Rifle Remote Datajack > --- INVENTORY (5) ---- Aluminum Leg Aluminum Leg Remote Datajack Peak State ------------ > --- POWER ------------ (None) > --- PROPULSION ------- (None) > --- UTILITY ---------- Advanced Visual Processing Unit Signal Interpreter > --- WEAPON ----------- Pulse Rifle Remote Datajack > --- INVENTORY -------- Aluminum Leg Aluminum Leg [Rating: 11] Favorites ----------- Power Heavy Ion Engine Engine Heavy Ion Engine Power Core Light Nuclear Core Propulsion Wheel Treads Light Treads Wheel Wheel Hover Unit Hover Unit Utility Signal Interpreter Processor Signal Interpreter Weapon EM Pulse Gun Energy Gun EM Pulse Gun Energy Cannon Beam Cannon Special Weapon Remote Datajack Build | -11 -10 -10 -9 -8 ------- Run | Scr Mat Min Mat Mat Slots Evolved 4 | . . . 2 2 Power 1 | . . . . 1 Propulsion . | . . . . . Utility 3 | . . . 2 1 Weapon . | . . . . . Parts Attached 23 | 4 . . 15 4 Power 4 | 1 . . 3 . Engine 3 | 1 . . 2 . Core 1 | . . . 1 . Reactor . | . . . . . Propulsion 9 | 2 . . 7 . Treads 1 | . . . 1 . Leg . | . . . . . Wheel 6 | 2 . . 4 . Hover 2 | . . . 2 . Flight . | . . . . . Utility 2 | . . . 1 1 Device . | . . . . . Storage . | . . . . . Processor 2 | . . . 1 1 Hackware . | . . . . . Protection . | . . . . . Artifact . | . . . . . Weapon 8 | 1 . . 4 3 Energy Gun 5 | 1 . . 2 2 Energy Cannon 2 | . . . 2 . Ballistic Gun . | . . . . . Ballistic Cannon . | . . . . . Launcher . | . . . . . Special Weapon 1 | . . . . 1 Impact Weapon . | . . . . . Slashing Weapon . | . . . . . Piercing Weapon . | . . . . . Special Melee Weapon . | . . . . . Unidentified Prototypes 1 | . . . 1 . Parts Lost 8 | . . . 6 2 Power 1 | . . . . 1 Propulsion 3 | . . . 3 . Utility . | . . . . . Weapon 4 | . . . 3 1 Highest Loss Streak 3 | . . . 3 1 To Critical Strikes 1 | . . . . 1 Average Slot Usage (%) 39 | . 57 57 40 22 Engine 8 | . 14 14 9 3 Wheel 13 | . 28 28 13 . Processor 4 | . . . 2 13 Energy Gun 6 | . 14 14 4 5 Energy Cannon 3 | . . . 5 . Naked Turns 10 | . . . 10 . Heaviest Build 13 | 5 5 5 13 8 Greatest Support 22 | 20 20 20 22 3 Greatest Overweight (x) 3 | . . . 3 2 Average Overweight (x) . | . . . . . Largest Inventory Capacity 5 | 5 5 5 5 5 Average Capacity 5 | 5 5 5 5 5 Most Carried 5 | 4 3 3 5 3 Average Carried 2 | 2 3 3 3 2 Final Capacity 5 | 5 5 5 5 5 Final Carried 3 | 3 3 3 2 3 Class Distribution -------------------- 100% | Mutant Dominant Class ---------------- Mutant | -10/Materials Mutant | -10/Mines Mutant | -9/Materials Mutant | -8/Materials Resources | -11 -10 -10 -9 -8 ----------- Run | Scr Mat Min Mat Mat Matter Collected 365 | 214 . 26 125 . Remotely . | . . . . . Salvage Created 770 | . . 100 561 109 Parts 43 | . . 5 33 5 Haulers Intercepted . | . . . . . Recyclers Shooed . | . . . . . Parts Field Recycled . | . . . . . Retrieved Matter . | . . . . . Parts Self-Destructed . | . . . . . Prevented . | . . . . . Kills | -11 -10 -10 -9 -8 ------- Run | Scr Mat Min Mat Mat Combat Hostiles Destroyed 16 | . . 2 12 2 Guns 7 | . . 2 3 2 Cannons 9 | . . . 9 . Classes Destroyed 3 | . . 1 2 . Watcher 1 | . . . 1 . Grunt 13 | . . 2 9 2 Sentry 3 | . . . 3 . Best Kill Streak 4 | . . 2 4 2 Combat Bots Only 4 | . . 2 4 2 Max Kills in Single Turn 1 | . . 1 1 1 Gunslinging . | . . . . . Exploded . | . . . . . Melee . | . . . . . Uniques/NPCs Destroyed . | . . . . . Combat | -11 -10 -10 -9 -8 -------- Run | Scr Mat Min Mat Mat Damage Taken 1815 | . . 94 976 745 Core 1015 | . . 71 394 550 Absorbed by Shields . | . . . . . Core Remaining (%) 57 | 100 . 71 1 . Volleys Fired 64 | . . 7 51 6 Largest 2 | . . 1 2 2 Hottest 113 | . . 40 100 113 Shots Fired 73 | . . 7 56 10 Gun 45 | . . 7 30 8 Cannon 26 | . . . 26 . Launcher . | . . . . . Special 2 | . . . . 2 Kinetic . | . . . . . Thermal 55 | . . . 51 4 Explosive . | . . . . . Electromagnetic 16 | . . 7 5 4 Robot Hit Streak 13 | . . 5 6 13 Robot Miss Streak 2 | . . 1 2 1 Penetration Max . | . . . . . Secondary Targets 2 | . . . . 2 Max Gunslinging Chain 1 | . . . . 1 Shots Hit Robots 53 | . . 6 38 9 Core Hits 30 | . . 5 20 5 Critical Kills . | . . . . . Critical Parts Destroyed . | . . . . . Critical Strikes 2 | . . . 2 . Burn 2 | . . . 2 . Melee Attacks . | . . . . . Impact . | . . . . . Slashing . | . . . . . Piercing . | . . . . . Sneak Attacks . | . . . . . Combat Hostiles . | . . . . . Follow-up Attacks . | . . . . . Damage Inflicted 849 | . . 82 608 159 Guns 535 | . . 82 312 141 Cannons 296 | . . . 296 . Explosions . | . . . . . Melee . | . . . . . Ramming 18 | . . . . 18 Kinetic . | . . . . . Thermal 643 | . . . 575 68 Explosive . | . . . . . Electromagnetic 188 | . . 82 33 73 Impact . | . . . . . Slashing . | . . . . . Piercing . | . . . . . Highest Corruption 2 | . . . . 2 Average Corruption 2 | . . . . 2 Corruption Purged . | . . . . . Corruption Blocked . | . . . . . Overload Shots . | . . . . . Overflow Damage . | . . . . . Projectiles . | . . . . . Explosions . | . . . . . Melee . | . . . . . Knockbacks . | . . . . . Impact . | . . . . . Kinetic . | . . . . . Secondary . | . . . . . Self-Inflicted Damage 7 | . . . . 7 Shots . | . . . . . Rammed 7 | . . . . 7 Targets Rammed 7 | . . . . 7 Kicked . | . . . . . Crushed . | . . . . . Highest Temperature 208 | . . 42 208 54 Average Temperature 59 | . . 27 66 20 Received Heat Transfer 837 | . . 51 381 405 Siege Activations . | . . . . . Robots Corrupted . | . . . . . Combat Hostiles . | . . . . . Parts Fried . | . . . . . Impact Corruptions . | . . . . . Robots Melted . | . . . . . Combat Hostiles . | . . . . . Parts Melted 2 | . . . 2 . Heat Transferred 1628 | . . . 1480 148 Parts Sabotaged . | . . . . . Parts Stolen . | . . . . . Parts Stripped . | . . . . . Power Chain Reactions . | . . . . . Missiles Intercepted . | . . . . . Alert | -11 -10 -10 -9 -8 ------- Run | Scr Mat Min Mat Mat Peak Influence 376 | . . 50 376 155 Initial 65 | . . . 19 65 Average 136 | . . 40 204 91 Maximum Alert Level 1 | . . . 1 . Low Security (%) 69 | 100 100 100 46 100 Level 1 30 | . . . 53 . Level 2 . | . . . . . Level 3 . | . . . . . Level 4 . | . . . . . Level 5 . | . . . . . High Security . | . . . . . Max Security . | . . . . . Squads Dispatched 3 | . . . 3 . Investigation . | . . . . . Extermination . | . . . . . Reinforcement 3 | . . . 3 . Assault . | . . . . . Garrison . | . . . . . Intercept . | . . . . . Searches Triggered . | . . . . . Construction Impeded . | . . . . . Haulers Reinforced . | . . . . . Active Scanning Responses . | . . . . . Cargo Convoy Interrupts . | . . . . . Stealth | -11 -10 -10 -9 -8 --------- Run | Scr Mat Min Mat Mat Distress Signals 3 | . . . 3 . Communications Jammed . | . . . . . Distress Signals . | . . . . . Times Spotted 33 | . . 5 16 12 Peak Tracking Total 7 | . . 3 4 7 Tactical Retreats 1 | . . . . 1 Traps | -11 -10 -10 -9 -8 ------- Run | Scr Mat Min Mat Mat Traps Triggered 3 | . . . 3 . Indirectly . | . . . . . Trap Hack Attempts . | . . . . . Triggered . | . . . . . Disarmed . | . . . . . Reprogrammed . | . . . . . Reused . | . . . . . Traps Extracted . | . . . . . Installed . | . . . . . Triggered . | . . . . . Machines | -11 -10 -10 -9 -8 ---------- Run | Scr Mat Min Mat Mat Machines Disabled . | . . . . . Max in Single Turn . | . . . . . Machines Sabotaged . | . . . . . Garrisons Compromised . | . . . . . Overloaded Fab Kills . | . . . . . Hacking | -11 -10 -10 -9 -8 --------- Run | Scr Mat Min Mat Mat Machines Accessed 5 | . 2 . 1 2 Terminals 4 | . 2 . 1 1 Fabricators . | . . . . . Repair Stations . | . . . . . Recycling Units 1 | . . . . 1 Scanalyzers . | . . . . . Garrison Access . | . . . . . Total Hacks 12 | . 4 . 4 4 Successful 9 | . 3 . 3 3 Failed 3 | . 1 . 1 1 Catastrophic . | . . . . . Database Lockouts . | . . . . . Manual 1 | . 1 . . . Terminals 10 | . 4 . 4 2 Fabricators . | . . . . . Repair Stations . | . . . . . Recycling Units 2 | . . . . 2 Scanalyzers . | . . . . . Garrison Access . | . . . . . Terminal Hacks 7 | . 3 . 3 1 Record 3 | . 1 . 1 1 Prototype ID Bank 1 | . 1 . . . Emergency Access Points 1 | . . . 1 . Hauler Manifests 1 | . 1 . . . Zone Layout 1 | . . . 1 . Fabricator Hacks . | . . . . . Repair Station Hacks . | . . . . . Recycling Unit Hacks 2 | . . . . 2 Process 1 | . . . . 1 Report Inventory 1 | . . . . 1 Scanalyzer . | . . . . . Garrison Access Hacks . | . . . . . Unauthorized Hacks . | . . . . . Terminals . | . . . . . Fabricators . | . . . . . Repair Stations . | . . . . . Recycling Units . | . . . . . Scanalyzers . | . . . . . Garrison Access . | . . . . . Data Cores Recovered . | . . . . . Used . | . . . . . Hacking Detections 4 | . 2 . 1 1 Full Trace Events . | . . . . . Feedback Events . | . . . . . Feedback Blocked . | . . . . . Robot Schematics Acquired . | . . . . . Robots Built . | . . . . . Authchips . | . . . . . Time . | . . . . . Total Robot Build Rating . | . . . . . Part Schematics Acquired . | . . . . . Parts Built . | . . . . . Authchips . | . . . . . Time . | . . . . . Total Part Build Rating . | . . . . . Parts Repaired . | . . . . . Time . | . . . . . Parts Recycled . | . . . . . Recycled Matter . | . . . . . Retrieved Matter . | . . . . . Retrieved Components . | . . . . . Parts Scanalyzed . | . . . . . Part Schematics Acquired . | . . . . . Parts Damaged . | . . . . . Bothacking | -11 -10 -10 -9 -8 ------------ Run | Scr Mat Min Mat Mat Used RIF Installer . | . . . . . Robots Hacked 1 | . . . . 1 Non-combat . | . . . . . Combat 1 | . . . . 1 Robot Hacks Applied 1 | . . . . 1 parse_system 1 | . . . . 1 Relay Couplers Released . | . . . . . Fabnet Peak Effective % . | . . . . . Robots Rewired . | . . . . . Allies Hacked . | . . . . . Hacks Repelled . | . . . . . Allies | -11 -10 -10 -9 -8 -------- Run | Scr Mat Min Mat Mat Total Allies . | . . . . . Largest Group . | . . . . . Highest-Rated Group . | . . . . . Highest-Rated Ally . | . . . . . Total Orders . | . . . . . Ally Attacks . | . . . . . Total Damage . | . . . . . Kills . | . . . . . Allies Corrupted . | . . . . . Allies Melted . | . . . . . Intel | -11 -10 -10 -9 -8 ------- Run | Scr Mat Min Mat Mat Robot Analysis Total . | . . . . . Derelict Logs Recovered . | . . . . . Drone Launches . | . . . . . Drone Recoveries . | . . . . . Exploration | -11 -10 -10 -9 -8 ------------- Run | Scr Mat Min Mat Mat Turns Passed 739 | 61 64 47 419 148 Spaces Moved 608 | 66 74 42 295 131 Core 179 | 16 . . 32 131 Treads 33 | . . . 33 . Legs . | . . . . . Wheels 388 | 50 74 42 222 . Hover 8 | . . . 8 . Flight . | . . . . . Fastest Speed 50 | 50 80 80 50 50 Average Speed 86 | 72 80 80 93 86 Slowest Speed 200 | 80 80 80 200 150 Overloaded Moves . | . . . . . Propulsion Burnouts . | . . . . . Robots Hopped . | . . . . . Cave-ins Triggered . | . . . . . Exploration Rate (%) 16 | 3 23 9 31 16 Regions Visited 4 Branch Regions 1 Pre-discovered Areas . | . . . . . Known Exits Taken 1 | . . . 1 . Unknown Exits Taken 3 | 1 1 1 . . Scrap Searched . | . . . . . Spaces Dug . | . . . . . Terrain Destroyed . | . . . . . Melee . | . . . . . Projectile . | . . . . . AOE . | . . . . . Terrain Rammed . | . . . . . Walls Destroyed . | . . . . . Machines Disabled . | . . . . . Actions | -11 -10 -10 -9 -8 --------- Run | Scr Mat Min Mat Mat Total 750 | 78 78 48 389 157 Wait 19 | 2 5 . 8 4 Move 604 | 65 73 41 294 131 Hop . | . . . . . Pick Up 25 | 7 . . 13 5 Fast Attach . | . . . . . Attach 22 | 4 . . 14 4 Detach 3 | . . . 3 . Swap 1 | . . . 1 . Drop 5 | . . . 5 . Fire 64 | . . 7 51 6 Melee . | . . . . . Ram 7 | . . . . 7 Kick . | . . . . . Crush . | . . . . . Escape Stasis . | . . . . . Rewire . | . . . . . Trap . | . . . . . Miscellaneous . | . . . . . Route ------- -11/Scrapyard -10/Materials -10/Mines -9/Materials -8/Materials History --------- Turn | Location | Event 5 | -11/Scrapyard | Discovered new exit (range 15) 62 | -11/Scrapyard | Entered Materials 119 | -10/Materials | Discovered new exit (range 9) 126 | -10/Materials | Entered Mines 136 | -10/Mines | Discovered new exit (range 7) 142 | -10/Mines | Met a Derelict bent on vengeance 173 | -10/Mines | Entered Materials 173 | -9/Materials | Evolved 2 slots: Utility x2 302 | -9/Materials | Build established: Mutant 520 | -9/Materials | Core integrity fell below 50% 550 | -9/Materials | Lost 3 parts (2n1w) 568 | -9/Materials | Discovered new exit (range 15) 582 | -9/Materials | Core integrity fell below 20% 590 | -9/Materials | Identified exit to Materials 592 | -9/Materials | Entered another Materials area 592 | -8/Materials | Evolved 2 slots: Power x1, Utility x1 709 | -8/Materials | Core integrity fell below 50% 730 | -8/Materials | Core integrity fell below 20% 740 | -8/Materials | Destroyed by G-47 Trooper with Particle Gun Last Messages --------------- 00710_ Slammed into G-50 Soldier. 00710_ Pulse Rifle broken. 00710_ Destabilizing: Short circuit. 00712_ Slammed into H-55 Commando. 00712_ R-06 Scavenger collects Imp. Heat Sink. 00713_ Slammed into H-55 Commando. 00714_ R-06 Scavenger collects Particle Gun. 00714_ Penetrated by Slug. 00714_ Critical hit (Destroy). 00714_ Shock Rifle destroyed. 00714_ Slammed into H-55 Commando. 00716_ Destabilizing: System corrupted (+2). 00717_ Slug penetrates Matter Filter. 00717_ Slammed into G-47 Trooper. 00717_ Critical hit (Burn: +37). 00731_ Acquired Remote Datajack. 00734_ Jacked G-47 Trooper... >>parse_system Reading system data... 00736_ Acquired Remote Datajack. Map ----- +----------------------------------------------------+ | ?????????????????????????????????????????????????? | | ?????????????????????????????????????????????????? | | ?????????????????????????????????????????????????? | | ?????????????????????????????????????????????????? | | ?????????????????????????????????????????????????? | | ?????????????????????????????????????????????????? | | ?????????????????????????????????????????????????? | | ?????????????????????????????????????????????????? | | ?????????????????????????????????????????????????? | | ?????????????????????????????????????????????????? | | ????????????????????????????? ???????????????????? | | ???????????????????????????? ?????????????????? | | ???????????????????????????? ?????????????????? | | ???????????????????????????? #?????????????????? | | ???????????????????????????? #?????????????????? | | ???????????????????????????? #?????????????????? | | ???????????????????????????? #?????????????????? | | ???????????????????????????? #?????????????????? | | ???????????????????????????? #?????????????????? | | ???????????????????????????? #?????????????????? | | ???????????????????????????# #?????????????????? | | ???????????????????????????# #?????????????????? | | ???????????????????????????# #?????????????????? | | ????????????########???##### #?????????????????? | | ???????????? #???#]] #?????????????????? | | ????????????# #???#]@ +?????????????????? | | ????????????# !#???#** #?????????????????? | | ????????????# #???#** g#+#???????????????? | | ????######### !!! #???#| g #???????????????? | | ????# # !!! #???#| #???????????????? | | ????# %"""%%# !!! #???##### #???????????????? | | ????# %""%" # ?????????# #???????????????? | | ????# """"" ###+############ #???????????????? | | ????# """"" # a#???????????????? | | ????# """"" / #???????????????? | | ????# """"" # #???????????????? | | ????#%%"""" # ####+## #???????????????? | | ????# % # #?? # #???????????????? | | ????# # #??"" # #???????????????? | | ????# # #### #? Y" # #???????????????? | | ????######### #??# #? "" # #???????????????? | | ???????????? #??# ## # #???????????????? | | ???????????####??# ####### #???????????????? | | ?????????????????# #???????????????? | | ?????????????????# #???????????????? | | ?????????????????# #???????????????? | | ?????????????????######"Y"## #???????????????? | | ??????????????????????#"""## #???????????????? | | ??????????????????????###### #???????????????? | | ???????????????????????????# #???????????????? | +----------------------------------------------------+ Best States ------------- Heat Dissipation 31 Energy Generation 14 Energy Capacity 280 Matter Stores 300 Matter Capacity 300 Sight Range 20 Terrain Scan Density 10 Evasion (%) 50 Recoil Reduction 1 Item Schematics ----------------- None Robot Schematics ------------------ None Fabricated ------------ Nothing Alien Tech Used ----------------- None Achievements -------------- None Challenges ------------ None Game ------ Seed DefenseSystemPit Manual? 0 Play Time 00:17:14 Cumulative 16.3 hours Start 2022.05.08 @ 09:20:30 End 2022.05.08 @ 09:39:57 Sessions 1 Manual Loads 0 Difficulty Rogue Special Mode None Game No. 37 Rogue 37 Adventurer 0 Explorer 0 Win Type - Total 0 Types 0/0/0/0/0/0/0/0/0 Lore% 19 Gallery% 20 Achievement% 16 Wizard Run 0 Options --------- ASCII 0 Keyboard 1 Movement Numpad Keybinds 0 Fullscreen 1 Font 18/SmallcapsGlow Map View 76x50 Tactical HUD 1 Map Filters NONE Filters NONE Steam 1 RUN: d5e7fbe6-55e4-4e3c-a874-9f6e49b312fd